[Event "Late-Titled-Tuesday-Blitz-April-16-2024"]
[Site "Chess.com"]
[Date "2024.04.16"]
[Round "10"]
[White "Aygehovit1992"]
[Black "Denmark2015"]
[Result "1-0"]
[WhiteElo "2788"]
[BlackElo "2603"]
[TimeControl "180+1"]
[EndTime "15:55:35 PDT"]
[Termination "Aygehovit1992 won by resignation"]

1. e4 {[%clk 0:02:59.9]} 1... e6 {[%clk 0:02:58.1]} 2. d4 {[%clk 0:02:59.5]}
2... d5 {[%clk 0:02:58.2]} 3. Nc3 {[%clk 0:03:00.4]} 3... Be7 {[%clk 0:02:57.9]}
4. h4 {[%clk 0:02:50.5]} 4... h6 {[%clk 0:02:41.1]} 5. e5 {[%clk 0:02:42.6]}
5... c5 {[%clk 0:02:40.3]} 6. Qg4 {[%clk 0:02:42.7]} 6... Kf8 {[%clk 0:02:25.1]}
7. dxc5 {[%clk 0:02:42.8]} 7... Nc6 {[%clk 0:02:24.1]} 8. Nf3 {[%clk 0:02:43]}
8... Bxc5 {[%clk 0:02:21.3]} 9. Rh3 {[%clk 0:02:36.2]} 9... Nge7 {[%clk
0:02:18.2]} 10. a3 {[%clk 0:02:22.4]} 10... h5 {[%clk 0:02:08.4]} 11. Qf4 {[%clk
0:02:21.2]} 11... Ng6 {[%clk 0:02:02.6]} 12. Qh2 {[%clk 0:02:19.8]} 12... Qc7
{[%clk 0:01:44.8]} 13. Bd3 {[%clk 0:02:15.5]} 13... Ngxe5 {[%clk 0:01:38.4]} 14.
Bf4 {[%clk 0:02:14.3]} 14... Nxd3+ {[%clk 0:01:34.1]} 15. cxd3 {[%clk
0:02:15.2]} 15... Qb6 {[%clk 0:01:18.6]} 16. Bd6+ {[%clk 0:02:14.9]} 16... Bxd6
{[%clk 0:01:10.2]} 17. Qxd6+ {[%clk 0:02:15.8]} 17... Ne7 {[%clk 0:01:10.5]} 18.
Qb4 {[%clk 0:01:28.2]} 18... Bd7 {[%clk 0:01:04.5]} 19. Ne5 {[%clk 0:01:26.1]}
19... Be8 {[%clk 0:00:57.3]} 20. Rf3 {[%clk 0:01:26.2]} 20... Qxb4 {[%clk
0:00:47.6]} 21. axb4 {[%clk 0:01:27.1]} 21... a6 {[%clk 0:00:47]} 22. b5 {[%clk
0:01:21]} 22... Kg8 {[%clk 0:00:45.1]} 23. Rf4 {[%clk 0:01:17.8]} 23... f6
{[%clk 0:00:42.7]} 24. Nf3 {[%clk 0:01:18.1]} 24... e5 {[%clk 0:00:42.4]} 25.
Rb4 {[%clk 0:00:58.5]} 25... d4 {[%clk 0:00:41.3]} 26. Ne4 {[%clk 0:00:58.1]}
26... Nd5 {[%clk 0:00:41.6]} 27. Rb3 {[%clk 0:00:52.4]} 27... a5 {[%clk
0:00:33.8]} 28. b6 {[%clk 0:00:51.2]} 28... Ra6 {[%clk 0:00:31.9]} 29. Nc5
{[%clk 0:00:49.9]} 29... Rxb6 {[%clk 0:00:30.2]} 30. Rxb6 {[%clk 0:00:50.1]}
30... Nxb6 {[%clk 0:00:29.7]} 31. Rxa5 {[%clk 0:00:49.3]} 31... Bc6 {[%clk
0:00:29.3]} 32. Nd2 {[%clk 0:00:43.3]} 32... Kf7 {[%clk 0:00:27.3]} 33. Nde4
{[%clk 0:00:40]} 33... Ke7 {[%clk 0:00:24.5]} 34. Nxb7 {[%clk 0:00:35]} 34...
Bxb7 {[%clk 0:00:20.8]} 35. Ra7 {[%clk 0:00:33.9]} 35... Rb8 {[%clk 0:00:20.2]}
36. Nc5 {[%clk 0:00:34]} 36... Nc8 {[%clk 0:00:19.9]} 37. Rxb7+ {[%clk
0:00:32.9]} 37... Rxb7 {[%clk 0:00:20.3]} 38. Nxb7 {[%clk 0:00:33.8]} 38... Kd7
{[%clk 0:00:20.6]} 39. Nc5+ {[%clk 0:00:33.5]} 39... Kc6 {[%clk 0:00:20.7]} 40.
Ne6 {[%clk 0:00:33.1]} 40... g6 {[%clk 0:00:19.6]} 41. Nf8 {[%clk 0:00:32]}
41... Ne7 {[%clk 0:00:20.1]} 42. Nh7 {[%clk 0:00:31.2]} 42... f5 {[%clk
0:00:19.6]} 43. Kd2 {[%clk 0:00:28.5]} 43... Kc5 {[%clk 0:00:18.2]} 44. Ng5
{[%clk 0:00:28.7]} 44... Kb4 {[%clk 0:00:16.5]} 45. Nf7 {[%clk 0:00:22.6]} 45...
Nc6 {[%clk 0:00:15.7]} 46. Nh8 {[%clk 0:00:22.4]} 46... Ne7 {[%clk 0:00:16]} 47.
Nf7 {[%clk 0:00:22.3]} 47... Nc6 {[%clk 0:00:16.4]} 48. Kc2 {[%clk 0:00:20.4]}
48... Ka4 {[%clk 0:00:14.2]} 49. g3 {[%clk 0:00:19]} 49... Kb4 {[%clk
0:00:14.3]} 50. f3 {[%clk 0:00:19.1]} 50... Ka4 {[%clk 0:00:14.4]} 51. Nd6
{[%clk 0:00:12.9]} 51... Kb4 {[%clk 0:00:14.1]} 52. Ne8 {[%clk 0:00:05.7]} 52...
Ka4 {[%clk 0:00:11]} 53. Nf6 {[%clk 0:00:05]} 53... Kb4 {[%clk 0:00:09.6]} 54.
f4 {[%clk 0:00:05.2]} 54... Kc5 {[%clk 0:00:07.2]} 55. Nd7+ {[%clk 0:00:04.6]}
55... Kd6 {[%clk 0:00:07.2]} 56. Nxe5 {[%clk 0:00:05.1]} 56... Nxe5 {[%clk
0:00:06.5]} 57. fxe5+ {[%clk 0:00:06]} 57... Kxe5 {[%clk 0:00:06.8]} 58. Kd2
{[%clk 0:00:06.5]} 58... g5 {[%clk 0:00:07.2]} 59. hxg5 {[%clk 0:00:06.5]} 59...
Ke6 {[%clk 0:00:02.5]} 60. b4 {[%clk 0:00:06.4]} 60... Kd5 {[%clk 0:00:02.8]}
61. b5 {[%clk 0:00:06.6]} 61... f4 {[%clk 0:00:03.4]} 62. gxf4 {[%clk
0:00:06.8]} 62... h4 {[%clk 0:00:03.7]} 63. Ke2 {[%clk 0:00:07.3]} 63... h3
{[%clk 0:00:03.8]} 64. Kf2 {[%clk 0:00:07.7]} 1-0

[Event "Late-Titled-Tuesday-Blitz-April-16-2024"]
[Site "Chess.com"]
[Date "2024.04.16"]
[Round "10"]
[White "Licancabur"]
[Black "PhileKhoob"]
[Result "1-0"]
[WhiteElo "2454"]
[BlackElo "2310"]
[TimeControl "180+1"]
[EndTime "15:56:59 PDT"]
[Termination "Licancabur won on time"]

1. d4 {[%clk 0:03:00.9]} 1... d5 {[%clk 0:02:59.5]} 2. Bg5 {[%clk 0:03:00.1]}
2... f6 {[%clk 0:02:54]} 3. Bc1 {[%clk 0:02:58.3]} 3... e5 {[%clk 0:02:53.4]} 4.
Nc3 {[%clk 0:02:58.1]} 4... e4 {[%clk 0:02:51.7]} 5. Bf4 {[%clk 0:02:37.5]} 5...
c6 {[%clk 0:02:48.2]} 6. e3 {[%clk 0:02:33.7]} 6... Bd6 {[%clk 0:02:46]} 7. f3
{[%clk 0:02:16.6]} 7... f5 {[%clk 0:02:42.9]} 8. fxe4 {[%clk 0:02:11.1]} 8...
fxe4 {[%clk 0:02:42.1]} 9. Qh5+ {[%clk 0:01:58.6]} 9... g6 {[%clk 0:02:34.4]}
10. Qg5 {[%clk 0:01:57.1]} 10... Qxg5 {[%clk 0:02:27.8]} 11. Bxg5 {[%clk
0:01:56.7]} 11... Be7 {[%clk 0:02:28.3]} 12. Bxe7 {[%clk 0:01:55]} 12... Nxe7
{[%clk 0:02:29.2]} 13. Nge2 {[%clk 0:01:51.1]} 13... Nf5 {[%clk 0:02:29.1]} 14.
Kd2 {[%clk 0:01:50.8]} 14... O-O {[%clk 0:02:28.7]} 15. Nf4 {[%clk 0:01:46.4]}
15... Nd7 {[%clk 0:02:23.8]} 16. g3 {[%clk 0:01:39.1]} 16... Nf6 {[%clk
0:02:18.1]} 17. Be2 {[%clk 0:01:37.7]} 17... g5 {[%clk 0:02:16.7]} 18. Nh5
{[%clk 0:01:30.1]} 18... Be6 {[%clk 0:02:11.1]} 19. Raf1 {[%clk 0:01:26.9]}
19... Nxh5 {[%clk 0:01:59.7]} 20. Bxh5 {[%clk 0:01:26.5]} 20... Ng7 {[%clk
0:02:00.1]} 21. Be2 {[%clk 0:01:13.1]} 21... Bh3 {[%clk 0:01:57.6]} 22. Rxf8+
{[%clk 0:01:10.6]} 22... Rxf8 {[%clk 0:01:58.5]} 23. Nd1 {[%clk 0:01:09.7]}
23... g4 {[%clk 0:01:57.5]} 24. c4 {[%clk 0:00:51.7]} 24... h5 {[%clk
0:01:42.7]} 25. Rg1 {[%clk 0:00:50.2]} 25... Ne6 {[%clk 0:01:40.3]} 26. cxd5
{[%clk 0:00:47.4]} 26... cxd5 {[%clk 0:01:39.4]} 27. Ke1 {[%clk 0:00:40.8]}
27... Ng5 {[%clk 0:01:36.6]} 28. Nc3 {[%clk 0:00:34.1]} 28... Nf3+ {[%clk
0:01:33.4]} 29. Bxf3 {[%clk 0:00:33.6]} 29... gxf3 {[%clk 0:01:34.3]} 30. Kf2
{[%clk 0:00:33.5]} 30... Be6 {[%clk 0:01:34.2]} 31. Rc1 {[%clk 0:00:29]} 31...
Rc8 {[%clk 0:01:33.8]} 32. Rg1 {[%clk 0:00:27.6]} 32... Rc6 {[%clk 0:01:32.5]}
33. a3 {[%clk 0:00:26.8]} 33... Kf7 {[%clk 0:01:31.5]} 34. Rc1 {[%clk
0:00:25.4]} 34... a6 {[%clk 0:01:29.8]} 35. Rg1 {[%clk 0:00:22.1]} 35... b5
{[%clk 0:01:29]} 36. Rh1 {[%clk 0:00:21.6]} 36... Bh3 {[%clk 0:01:25.5]} 37. Rc1
{[%clk 0:00:20.1]} 37... Ke6 {[%clk 0:01:22.4]} 38. Na2 {[%clk 0:00:19.6]} 38...
Rxc1 {[%clk 0:01:14.3]} 39. Nxc1 {[%clk 0:00:19.5]} 39... Kd6 {[%clk 0:01:12.9]}
40. b4 {[%clk 0:00:19.2]} 40... Bc8 {[%clk 0:01:07.7]} 41. Na2 {[%clk
0:00:18.9]} 41... Ke7 {[%clk 0:01:04.8]} 42. Nc3 {[%clk 0:00:19]} 42... Bb7
{[%clk 0:01:02]} 43. Nd1 {[%clk 0:00:18.9]} 43... Kf6 {[%clk 0:01:00.8]} 44. Kg1
{[%clk 0:00:18.6]} 44... Kg5 {[%clk 0:00:58.5]} 45. Nf2 {[%clk 0:00:18.6]} 45...
Bc8 {[%clk 0:00:57.7]} 46. Kf1 {[%clk 0:00:18.7]} 46... h4 {[%clk 0:00:56.8]}
47. Kg1 {[%clk 0:00:19]} 47... hxg3 {[%clk 0:00:42]} 48. hxg3 {[%clk 0:00:18.7]}
48... Bg4 {[%clk 0:00:40.4]} 49. Nd1 {[%clk 0:00:17.5]} 49... Bh3 {[%clk
0:00:30.9]} 50. Kf2 {[%clk 0:00:17]} 50... Bc8 {[%clk 0:00:20.7]} 51. Nc3 {[%clk
0:00:14.5]} 51... Bb7 {[%clk 0:00:18.9]} 52. Nb1 {[%clk 0:00:14]} 52... Kg4
{[%clk 0:00:17.9]} 53. Nd2 {[%clk 0:00:13.3]} 53... Bc8 {[%clk 0:00:13.7]} 54.
Nb3 {[%clk 0:00:12.9]} 54... Kf5 {[%clk 0:00:12.3]} 55. Nc5 {[%clk 0:00:11.2]}
55... Kg4 {[%clk 0:00:12.8]} 56. Nb3 {[%clk 0:00:10]} 56... Kf5 {[%clk
0:00:10.1]} 57. Na5 {[%clk 0:00:10]} 57... Kf6 {[%clk 0:00:06.2]} 58. Nc6 {[%clk
0:00:08.9]} 58... Bd7 {[%clk 0:00:02.2]} 59. Na5 {[%clk 0:00:05.4]} 59... Be8
{[%clk 0:00:01.8]} 60. Nb7 {[%clk 0:00:05.2]} 60... Bd7 {[%clk 0:00:02]} 61. Nc5
{[%clk 0:00:05.2]} 61... Bc8 {[%clk 0:00:02.5]} 62. Nb3 {[%clk 0:00:04.9]} 62...
Ke7 {[%clk 0:00:03.1]} 63. Nd2 {[%clk 0:00:04.6]} 63... Kd6 {[%clk 0:00:03.1]}
64. Nb1 {[%clk 0:00:03.3]} 64... Kc6 {[%clk 0:00:01.9]} 65. Nc3 {[%clk
0:00:03.7]} 65... Be6 {[%clk 0:00:01.7]} 66. Nd1 {[%clk 0:00:03.9]} 66... Kb6
{[%clk 0:00:01.8]} 67. Nc3 {[%clk 0:00:03.7]} 67... a5 {[%clk 0:00:02.4]} 68.
Kg1 {[%clk 0:00:03.1]} 68... a4 {[%clk 0:00:02.8]} 69. Kf2 {[%clk 0:00:02.6]}
69... Bd7 {[%clk 0:00:03.4]} 70. Kg1 {[%clk 0:00:03.2]} 70... Bc6 {[%clk
0:00:03.4]} 71. Kf2 {[%clk 0:00:03.7]} 71... Kc7 {[%clk 0:00:04]} 72. Nb1 {[%clk
0:00:04.2]} 72... Kd6 {[%clk 0:00:04.7]} 73. Nd2 {[%clk 0:00:04.8]} 73... Ke6
{[%clk 0:00:05.3]} 74. Nf1 {[%clk 0:00:05.4]} 74... Kf5 {[%clk 0:00:05.5]} 75.
Nh2 {[%clk 0:00:05.9]} 75... Kg5 {[%clk 0:00:06.2]} 76. Kg1 {[%clk 0:00:06.3]}
76... Bd7 {[%clk 0:00:06.6]} 77. Kf2 {[%clk 0:00:06.1]} 77... Bh3 {[%clk
0:00:07.3]} 78. Kg1 {[%clk 0:00:05.8]} 78... Bg2 {[%clk 0:00:07]} 79. Kf2 {[%clk
0:00:05.2]} 79... Bh3 {[%clk 0:00:03.9]} 80. Kg1 {[%clk 0:00:04.8]} 80... Bg4
{[%clk 0:00:03.9]} 81. Nf1 {[%clk 0:00:04]} 81... Bf5 {[%clk 0:00:02.7]} 82. Kf2
{[%clk 0:00:04.3]} 82... Kg4 {[%clk 0:00:01.8]} 83. Nd2 {[%clk 0:00:04.3]} 83...
Kh3 {[%clk 0:00:01.4]} 84. Nb1 {[%clk 0:00:04.9]} 84... Bg4 {[%clk 0:00:01.8]}
85. Nc3 {[%clk 0:00:05]} 85... Be6 {[%clk 0:00:02.1]} 86. Nxb5 {[%clk
0:00:04.9]} 86... Kg4 {[%clk 0:00:02.4]} 87. Nc7 {[%clk 0:00:02.4]} 87... Bf7
{[%clk 0:00:01]} 88. b5 {[%clk 0:00:02.4]} 88... Kf5 {[%clk 0:00:01.3]} 89. b6
{[%clk 0:00:02.6]} 89... Kf6 {[%clk 0:00:01]} 90. b7 {[%clk 0:00:03]} 1-0

[Event "Late-Titled-Tuesday-Blitz-April-16-2024"]
[Site "Chess.com"]
[Date "2024.04.16"]
[Round "10"]
[White "N_Mullodzhanov"]
[Black "micke12a"]
[Result "1-0"]
[WhiteElo "2549"]
[BlackElo "2443"]
[TimeControl "180+1"]
[EndTime "15:58:04 PDT"]
[Termination "N_Mullodzhanov won on time"]

1. e4 {[%clk 0:03:00.9]} 1... c5 {[%clk 0:02:57.7]} 2. c3 {[%clk 0:03:01]} 2...
e6 {[%clk 0:02:56.6]} 3. Nf3 {[%clk 0:03:00.9]} 3... Nc6 {[%clk 0:02:54.1]} 4.
d4 {[%clk 0:03:00.1]} 4... d5 {[%clk 0:02:53.5]} 5. exd5 {[%clk 0:02:58.4]} 5...
Qxd5 {[%clk 0:02:53.2]} 6. Na3 {[%clk 0:02:55.3]} 6... a6 {[%clk 0:02:51.8]} 7.
Nc4 {[%clk 0:02:49.2]} 7... Qd8 {[%clk 0:02:51.7]} 8. Be3 {[%clk 0:02:48]} 8...
b5 {[%clk 0:02:50.2]} 9. Nce5 {[%clk 0:02:42.1]} 9... Nxe5 {[%clk 0:02:47.7]}
10. Nxe5 {[%clk 0:02:39.9]} 10... Bb7 {[%clk 0:02:38.5]} 11. dxc5 {[%clk
0:02:34.4]} 11... Qc7 {[%clk 0:02:37.6]} 12. c6 {[%clk 0:02:04.2]} 12... Bxc6
{[%clk 0:02:34.8]} 13. Nxc6 {[%clk 0:02:05.1]} 13... Qxc6 {[%clk 0:02:31.9]} 14.
Qc2 {[%clk 0:01:56.5]} 14... Nf6 {[%clk 0:02:29.8]} 15. O-O-O {[%clk 0:01:53.1]}
15... Bc5 {[%clk 0:02:29.1]} 16. Bf4 {[%clk 0:01:32.7]} 16... O-O {[%clk
0:02:27.5]} 17. f3 {[%clk 0:01:29.4]} 17... Nd5 {[%clk 0:02:27]} 18. Bd2 {[%clk
0:01:25.5]} 18... Rac8 {[%clk 0:02:05.6]} 19. Bd3 {[%clk 0:01:20.1]} 19... g6
{[%clk 0:02:03.3]} 20. Rde1 {[%clk 0:01:05.2]} 20... b4 {[%clk 0:02:00.6]} 21.
c4 {[%clk 0:01:03.5]} 21... Nb6 {[%clk 0:01:51.1]} 22. h4 {[%clk 0:00:52]} 22...
Qa4 {[%clk 0:01:40.4]} 23. b3 {[%clk 0:00:41.8]} 23... Qa3+ {[%clk 0:01:39.4]}
24. Kb1 {[%clk 0:00:42]} 24... Bd4 {[%clk 0:01:39.6]} 25. Bc1 {[%clk 0:00:23.9]}
25... Qa5 {[%clk 0:01:35.8]} 26. Qe2 {[%clk 0:00:23.7]} 26... Bc3 {[%clk
0:01:21.6]} 27. Rd1 {[%clk 0:00:22.5]} 27... Qe5 {[%clk 0:01:14.9]} 28. Qxe5
{[%clk 0:00:17.5]} 28... Bxe5 {[%clk 0:01:14.8]} 29. Be4 {[%clk 0:00:15.3]}
29... a5 {[%clk 0:01:08.8]} 30. Be3 {[%clk 0:00:15.3]} 30... Rb8 {[%clk
0:01:01.9]} 31. h5 {[%clk 0:00:15.4]} 31... a4 {[%clk 0:01:00.2]} 32. Bc5 {[%clk
0:00:15.3]} 32... Rfc8 {[%clk 0:00:59.2]} 33. Be3 {[%clk 0:00:09.3]} 33... axb3
{[%clk 0:00:59.3]} 34. axb3 {[%clk 0:00:10.2]} 34... Na8 {[%clk 0:00:52.4]} 35.
hxg6 {[%clk 0:00:09.2]} 35... hxg6 {[%clk 0:00:51.4]} 36. f4 {[%clk 0:00:09.3]}
36... Bg7 {[%clk 0:00:50.1]} 37. g4 {[%clk 0:00:09.7]} 37... Nc7 {[%clk
0:00:50.1]} 38. f5 {[%clk 0:00:07]} 38... exf5 {[%clk 0:00:44.4]} 39. gxf5
{[%clk 0:00:07.5]} 39... Re8 {[%clk 0:00:45.1]} 40. Bf4 {[%clk 0:00:07.7]} 40...
Rxe4 {[%clk 0:00:44.3]} 41. Bxc7 {[%clk 0:00:07.3]} 41... Rc8 {[%clk 0:00:44.8]}
42. Bd6 {[%clk 0:00:04]} 42... gxf5 {[%clk 0:00:43.9]} 43. Bxb4 {[%clk
0:00:02.8]} 43... Rb8 {[%clk 0:00:44.3]} 44. Bd2 {[%clk 0:00:02]} 44... Rxb3+
{[%clk 0:00:44]} 45. Kc2 {[%clk 0:00:02.6]} 45... Rb2+ {[%clk 0:00:43.9]} 46.
Kd3 {[%clk 0:00:03.1]} 46... Rd4+ {[%clk 0:00:43.7]} 47. Ke3 {[%clk 0:00:02.5]}
47... f4+ {[%clk 0:00:43.3]} 48. Ke2 {[%clk 0:00:02.5]} 48... Rxc4 {[%clk
0:00:41.3]} 49. Rhf1 {[%clk 0:00:01.5]} 49... Bc3 {[%clk 0:00:39.3]} 50. Rg1+
{[%clk 0:00:01.3]} 50... Kf8 {[%clk 0:00:37.9]} 51. Rgf1 {[%clk 0:00:02.2]}
51... Re4+ {[%clk 0:00:35.9]} 52. Kd3 {[%clk 0:00:02.6]} 52... Bxd2 {[%clk
0:00:13.1]} 53. Kxe4 {[%clk 0:00:03.5]} 53... Be3 {[%clk 0:00:13.3]} 54. Rd7
{[%clk 0:00:03.1]} 54... Ke8 {[%clk 0:00:13]} 55. Rc7 {[%clk 0:00:03]} 55...
Rb4+ {[%clk 0:00:12.8]} 56. Kf5 {[%clk 0:00:02.3]} 56... Rb5+ {[%clk 0:00:13.3]}
57. Kg4 {[%clk 0:00:02.6]} 57... f5+ {[%clk 0:00:11.7]} 58. Kf3 {[%clk
0:00:02.6]} 58... Bb6 {[%clk 0:00:08.7]} 59. Rg7 {[%clk 0:00:02.2]} 59... Kf8
{[%clk 0:00:07.4]} 60. Rh7 {[%clk 0:00:02.6]} 60... Be3 {[%clk 0:00:07.4]} 61.
Rh8+ {[%clk 0:00:01.9]} 61... Kg7 {[%clk 0:00:07.5]} 62. Rh5 {[%clk 0:00:02.6]}
62... Kg6 {[%clk 0:00:07.7]} 63. Rh8 {[%clk 0:00:02.9]} 63... Kf6 {[%clk
0:00:07.7]} 64. Rf8+ {[%clk 0:00:03]} 64... Ke6 {[%clk 0:00:07.7]} 65. Ra8
{[%clk 0:00:03.9]} 65... Rb3 {[%clk 0:00:07.7]} 66. Ra6+ {[%clk 0:00:03.4]}
66... Kd5 {[%clk 0:00:07]} 67. Rd1+ {[%clk 0:00:03.4]} 67... Kc4 {[%clk
0:00:06.6]} 68. Ra4+ {[%clk 0:00:03.5]} 68... Kb5 {[%clk 0:00:06.2]} 69. Ra2
{[%clk 0:00:03.9]} 69... Bd2+ {[%clk 0:00:05.7]} 70. Ke2 {[%clk 0:00:03.5]}
70... Be3 {[%clk 0:00:05.7]} 71. Rd5+ {[%clk 0:00:03.4]} 71... Kc4 {[%clk
0:00:05.7]} 72. Rxf5 {[%clk 0:00:04.3]} 72... Rc3 {[%clk 0:00:05.9]} 73. Ra4+
{[%clk 0:00:03.6]} 73... Kb3 {[%clk 0:00:06]} 74. Ra8 {[%clk 0:00:04.5]} 74...
Rc2+ {[%clk 0:00:06.1]} 75. Kf3 {[%clk 0:00:03.4]} 75... Rf2+ {[%clk 0:00:06.4]}
76. Ke4 {[%clk 0:00:04]} 76... Rf1 {[%clk 0:00:07.3]} 77. Rb8+ {[%clk
0:00:04.2]} 77... Kc4 {[%clk 0:00:06.1]} 78. Rc8+ {[%clk 0:00:04.2]} 78... Kb4
{[%clk 0:00:05.9]} 79. Re8 {[%clk 0:00:02.8]} 79... Kc3 {[%clk 0:00:05.6]} 80.
Kd5 {[%clk 0:00:02.8]} 80... Rd1+ {[%clk 0:00:05.2]} 81. Kc6 {[%clk 0:00:03.2]}
81... Rd4 {[%clk 0:00:04.8]} 82. Re6 {[%clk 0:00:02.3]} 82... Kd3 {[%clk
0:00:05.3]} 83. Kc7 {[%clk 0:00:02.6]} 83... Rc4+ {[%clk 0:00:05.1]} 84. Kd7
{[%clk 0:00:02.6]} 84... Ke2 {[%clk 0:00:05.2]} 85. Ke7 {[%clk 0:00:03]} 85...
f3 {[%clk 0:00:04.8]} 86. Rfe5 {[%clk 0:00:03.2]} 86... Rc3 {[%clk 0:00:05]} 87.
Rh6 {[%clk 0:00:01.8]} 87... f2 {[%clk 0:00:05.2]} 88. Rh2 {[%clk 0:00:02]}
88... Ke1 {[%clk 0:00:04.3]} 89. Rxf2 {[%clk 0:00:01.7]} 89... Kxf2 {[%clk
0:00:04.3]} 90. Re6 {[%clk 0:00:02.3]} 90... Ke2 {[%clk 0:00:04.6]} 91. Kf7
{[%clk 0:00:03]} 91... Kd3 {[%clk 0:00:05.2]} 92. Ke7 {[%clk 0:00:03.7]} 92...
Bd4 {[%clk 0:00:05.8]} 93. Kd7 {[%clk 0:00:04.6]} 93... Rc5 {[%clk 0:00:06.1]}
94. Re8 {[%clk 0:00:05.5]} 94... Rd5+ {[%clk 0:00:06.4]} 95. Ke6 {[%clk
0:00:05.6]} 95... Re5+ {[%clk 0:00:06.7]} 96. Kf7 {[%clk 0:00:06.2]} 96... Ra5
{[%clk 0:00:07.6]} 97. Re6 {[%clk 0:00:06.3]} 97... Kc4 {[%clk 0:00:08]} 98. Rg6
{[%clk 0:00:06.7]} 98... Kd5 {[%clk 0:00:08.4]} 99. Rg5+ {[%clk 0:00:07.1]}
99... Be5 {[%clk 0:00:08.7]} 100. Rg6 {[%clk 0:00:07.8]} 100... Ra7+ {[%clk
0:00:08.8]} 101. Kg8 {[%clk 0:00:07.1]} 101... Ke4 {[%clk 0:00:08.9]} 102. Kf8
{[%clk 0:00:06.4]} 102... Kf5 {[%clk 0:00:09.1]} 103. Rc6 {[%clk 0:00:06.7]}
103... Bf6 {[%clk 0:00:08.9]} 104. Ke8 {[%clk 0:00:06.7]} 104... Kg6 {[%clk
0:00:06.8]} 105. Rc2 {[%clk 0:00:06.6]} 105... Re7+ {[%clk 0:00:06.2]} 106. Kf8
{[%clk 0:00:07.1]} 106... Rd7 {[%clk 0:00:06.6]} 107. Rg2+ {[%clk 0:00:06.4]}
107... Bg5 {[%clk 0:00:06.3]} 108. Re2 {[%clk 0:00:05.4]} 108... Rd8+ {[%clk
0:00:04.6]} 109. Re8 {[%clk 0:00:05.6]} 109... Rd7 {[%clk 0:00:04.6]} 110. Re6+
{[%clk 0:00:05.2]} 110... Bf6 {[%clk 0:00:04.6]} 111. Re2 {[%clk 0:00:05.3]}
111... Rd8+ {[%clk 0:00:02.8]} 112. Re8 {[%clk 0:00:05.4]} 112... Rd7 {[%clk
0:00:03.1]} 113. Re2 {[%clk 0:00:05.8]} 113... Bg7+ {[%clk 0:00:03.4]} 114. Ke8
{[%clk 0:00:05.4]} 114... Ra7 {[%clk 0:00:03.5]} 115. Re6+ {[%clk 0:00:04.3]}
115... Kf5 {[%clk 0:00:03.4]} 116. Rc6 {[%clk 0:00:04.4]} 116... Be5 {[%clk
0:00:02.7]} 117. Kf8 {[%clk 0:00:04]} 117... Bf6 {[%clk 0:00:02.3]} 118. Ke8
{[%clk 0:00:04.4]} 118... Kg6 {[%clk 0:00:02.1]} 119. Rc1 {[%clk 0:00:02.2]}
119... Re7+ {[%clk 0:00:01.8]} 120. Kf8 {[%clk 0:00:02.8]} 120... Rd7 {[%clk
0:00:01.5]} 121. Re1 {[%clk 0:00:02.4]} 121... Rd8+ {[%clk 0:00:01.1]} 122. Re8
{[%clk 0:00:02.6]} 1-0